[Event "Schachfestival IM 2018"]
[Site "Lueneburg"]
[Date "2018.07.09"]
[Round "5"]
[White "Lubbe, Melanie"]
[Black "Mirzoev, Azer"]
[Result "1/2-1/2"]
[ECO "C45"]
[WhiteElo "2332"]
[BlackElo "2506"]
[Annotator "ChessBase"]
[PlyCount "138"]
[EventDate "2018.07.05"]
[EventType "tourn"]
[EventCountry "GER"]
[SourceTitle "playchess.com"]
[Source "ChessBase"]
[SourceQuality "1"]
[TimeControl "40/5400+30:1800+30"]

1. e4 {[%emt 0:00:00]} e5 {[%emt 0:04:49]} 2. Nf3 {[%emt 0:00:00]} Nc6 {[%emt 0:00:05]} 3. d4 {[%emt 0:00:00]} exd4 {[%emt 0:00:11]} 4. Nxd4 {[%emt 0:00:00]} Bb4+ {[%emt 0:00:08]} 5. c3 {[%emt 0:00:07]} Bc5 {[%emt 0:00:04]} 6. Be3 {[%emt 0:00:18]} Bb6 {[%emt 0:00:06]} 7. Nf5 {[%emt 0:00:33]} g6 {[%emt 0:00:56]} 8. Bxb6 {[%emt 0:00:20]} axb6 {[%emt 0:00:03]} 9. Ne3 {[%emt 0:00:25]} Nf6 {[%emt 0:00:23]} 10. f3 {[%emt 0:00:30]} O-O {[%emt 0:00:50]} 11. c4 {[%emt 0:01:59]} Nh5 {[%emt 0:00:59]} 12. Qd2 {[%emt 0:04:00]} d6 {[%emt 0:00:42]} 13. Nc3 {[%emt 0:01:05]} Ng7 {[%emt 0:00:29]} 14. O-O-O {[%emt 0:16:25]} f5 {[%emt 0:01:33]} 15. Kb1 {[%emt 0:06:01]} Be6 {[%emt 0:05:06]} 16. exf5 {[%emt 0:08:31]} Nxf5 {[%emt 0:00:19]} 17. Nxf5 {[%emt 0:00:58]} Bxf5+ {[%emt 0:00:29]} 18. Bd3 {[%emt 0:00:29]} Qd7 {[%emt 0:01:06]} 19. Nd5 {[%emt 0:09:05]} Ne7 {[%emt 0:21:20]} 20. Nxe7+ {[%emt 0:04:56]} Qxe7 {[%emt 0:00:36]} 21. Rhe1 {[%emt 0:00:07]} Qh4 {[%emt 0:02:26]} 22. b3 {[%emt 0:06:42]} Bxd3+ {[%emt 0:24:10]} 23. Qxd3 {[%emt 0:00:04]} Ra5 {[%emt 0:00:23]} 24. Qd4 {[%emt 0:09:19]} Qxd4 {[%emt 0:04:54]} 25. Rxd4 {[%emt 0:00:04]} Rh5 {[%emt 0:00:09]} 26. h3 {[%emt 0:05:57]} b5 {[%emt 0:00:33]} 27. cxb5 {[%emt 0:05:34]} Rxb5 {[%emt 0:00:16]} 28. Re7 {[%emt 0:02:15]} Rf7 {[%emt 0:00:34]} 29. Re8+ {[%emt 0:00:16]} Kg7 {[%emt 0:00:09]} 30. Kc2 {[%emt 0:01:21]} Rg5 {[%emt 0:00:46]} 31. Re2 {[%emt 0:03:15]} Rgf5 {[%emt 0:02:36]} 32. a4 {[%emt 0:00:49]} Kf6 {[%emt 0:01:15]} 33. Rde4 {[%emt 0:05:16]} Rd7 {[%emt 0:00:57]} 34. b4 {[%emt 0:02:24]} d5 {[%emt 0:01:25]} 35. Re8 {[%emt 0:02:15]} Kf7 {[%emt 0:02:11]} 36. Rh8 {[%emt 0:00:52]} Kg7 {[%emt 0:00:08]} 37. Rhe8 {[%emt 0:01:45]} Rff7 {[%emt 0:00:58]} 38. Kd3 {[%emt 0:01:03]} Kh6 {[%emt 0:00:08]} 39. Kc3 {[%emt 0:03:17]} Kg5 {[%emt 0:00:37]} 40. R2e5+ {[%emt 0:00:41]} Kh4 {[%emt 0:01:29]} 41. a5 {[%emt 0:04:33]} c6 {[%emt 0:00:09]} 42. R8e6 {[%emt 0:04:12]} Kg3 {[%emt 0:03:32]} 43. Rg5+ {[%emt 0:02:36]} Kf2 {[%emt 0:00:10]} 44. Kd3 {[%emt 0:06:56]} Rde7 {[%emt 0:03:49]} 45. Rxe7 {[%emt 0:01:11]} Rxe7 {[%emt 0:00:07]} 46. b5 {[%emt 0:07:10]} cxb5 {[%emt 0:00:25]} 47. Kd4 {[%emt 0:00:03]} b4 {[%emt 0:06:52]} 48. Kxd5 {[%emt 0:00:58]} b3 {[%emt 0:03:33]} 49. Kd6 {[%emt 0:00:34]} Rf7 {[%emt 0:04:27]} 50. Rb5 {[%emt 0:00:28]} Kxg2 {[%emt 0:00:06]} 51. Rxb3 {[%emt 0:00:32]} Kxh3 {[%emt 0:00:07]} 52. Ke6 {[%emt 0:01:23]} Rc7 {[%emt 0:02:40]} 53. Kd6 {[%emt 0:02:14]} Rg7 {[%emt 0:00:33]} 54. Ke5 {[%emt 0:00:24]} Kh4 {[%emt 0:02:23]} 55. Rb4+ {[%emt 0:01:52]} Kg3 {[%emt 0:00:07]} 56. Kf6 {[%emt 0:00:30]} Rc7 {[%emt 0:00:13]} 57. f4 {[%emt 0:00:14]} Kg4 {[%emt 0:14:04]} 58. f5+ {[%emt 0:00:41]} Kh5 {[%emt 0:00:02]} 59. fxg6 {[%emt 0:00:18]} hxg6 {[%emt 0:00:06]} 60. Rb5+ {[%emt 0:00:17]} Kh6 {[%emt 0:00:03]} 61. Rb1 {[%emt 0:00:55]} Rc6+ {[%emt 0:00:15]} 62. Ke5 {[%emt 0:00:52]} Kg5 {[%emt 0:01:19]} 63. Rxb7 {[%emt 0:00:36]} Rc5+ {[%emt 0:03:29]} 64. Ke4 {[%emt 0:00:01]} Rxa5 {[%emt 0:00:06]} 65. Kf3 {[%emt 0:00:08]} Ra3+ {[%emt 0:00:08]} 66. Kg2 {[%emt 0:00:05]} Kh5 {[%emt 0:00:04]} 67. Rb5+ {[%emt 0:00:51]} g5 {[%emt 0:00:03]} 68. Rb4 {[%emt 0:00:12]} g4 {[%emt 0:00:06]} 69. Rb8 {[%emt 0:00:28]} Kh4 {[%emt 0:00:06]} 1/2-1/2

[Event "Schachfestival IM 2018"]
[Site "Lueneburg"]
[Date "2018.07.09"]
[Round "5"]
[White "Fuchs, Judith"]
[Black "Simantsev, Mikhail"]
[Result "0-1"]
[ECO "D00"]
[WhiteElo "2289"]
[BlackElo "2434"]
[Annotator "ChessBase"]
[PlyCount "114"]
[EventDate "2018.07.05"]
[EventType "tourn"]
[EventCountry "GER"]
[SourceTitle "playchess.com"]
[Source "ChessBase"]
[SourceQuality "1"]
[TimeControl "40/5400+30:1800+30"]

1. d4 {[%emt 0:00:00]} Nf6 {[%emt 0:07:40]} 2. Bf4 {[%emt 0:00:00]} e6 {[%emt 0:01:47]} 3. e3 {[%emt 0:00:12]} c5 {[%emt 0:02:02]} 4. c3 {[%emt 0:00:45]} d5 {[%emt 0:01:04]} 5. Nd2 {[%emt 0:02:03]} Bd6 {[%emt 0:03:53]} 6. Bg3 {[%emt 0:00:50]} O-O {[%emt 0:01:02]} 7. Bd3 {[%emt 0:02:54]} Qc7 {[%emt 0:03:59]} 8. Bxd6 {[%emt 0:01:25]} Qxd6 {[%emt 0:00:12]} 9. f4 {[%emt 0:00:06]} b6 {[%emt 0:05:03]} 10. Qe2 {[%emt 0:00:09]} Nc6 {[%emt 0:05:48]} 11. a3 {[%emt 0:03:51]} Bb7 {[%emt 0:13:14]} 12. Ngf3 {[%emt 0:02:30]} cxd4 {[%emt 0:06:03]} 13. cxd4 {[%emt 0:00:26]} Rac8 {[%emt 0:00:35]} 14. O-O {[%emt 0:03:40]} Ne7 {[%emt 0:04:22]} 15. Qe1 {[%emt 0:16:49]} Nf5 {[%emt 0:08:13]} 16. Ng5 {[%emt 0:11:31]} Qe7 {[%emt 0:05:11]} 17. Qe2 {[%emt 0:03:54]} Rc7 {[%emt 0:08:14]} 18. Rf3 {[%emt 0:07:25]} h6 {[%emt 0:02:09]} 19. Rh3 {[%emt 0:04:51]} Rfc8 {[%emt 0:01:40]} 20. Ngf3 {[%emt 0:02:55]} Rc1+ {[%emt 0:03:24]} 21. Rxc1 {[%emt 0:00:06]} Rxc1+ {[%emt 0:00:02]} 22. Nf1 {[%emt 0:00:28]} Ne4 {[%emt 0:03:37]} 23. g4 {[%emt 0:05:13]} Nfd6 {[%emt 0:00:04]} 24. Kg2 {[%emt 0:03:53]} f6 {[%emt 0:00:27]} 25. Rh5 {[%emt 0:05:14]} Bc6 {[%emt 0:00:22]} 26. Rh3 {[%emt 0:05:04]} Ba4 {[%emt 0:00:47]} 27. Kg1 {[%emt 0:05:23]} Qe8 {[%emt 0:03:49]} 28. N3d2 {[%emt 0:05:14]} Bb5 {[%emt 0:05:49]} 29. Nxe4 {[%emt 0:02:18]} dxe4 {[%emt 0:00:13]} 30. Qd2 {[%emt 0:02:44]} Ra1 {[%emt 0:00:04]} 31. Be2 {[%emt 0:01:05]} Bxe2 32. Qxe2 {[%emt 0:00:01]} Qb5 {[%emt 0:00:39]} 33. Qxb5 {[%emt 0:01:01]} Nxb5 {[%emt 0:00:01]} 34. Rg3 {[%emt 0:00:14]} Nd6 {[%emt 0:00:02]} 35. Rg2 {[%emt 0:00:27]} Nc4 {[%emt 0:00:08]} 36. Re2 {[%emt 0:01:10]} Rb1 {[%emt 0:00:01]} 37. Kf2 {[%emt 0:00:32]} Rxb2 {[%emt 0:01:29]} 38. Rxb2 {[%emt 0:00:15]} Nxb2 {[%emt 0:00:01]} 39. Ng3 {[%emt 0:00:17]} Nd1+ {[%emt 0:02:46]} 40. Ke2 {[%emt 0:00:31]} Nc3+ {[%emt 0:00:02]} 41. Kd2 {[%emt 0:32:24]} Nb1+ {[%emt 0:30:11]} 42. Kc2 {[%emt 0:00:00]} Nxa3+ {[%emt 0:00:00]} 43. Kb3 {[%emt 0:00:00]} Nb5 {[%emt 0:00:00]} 44. Nxe4 {[%emt 0:00:00]} f5 {[%emt 0:00:00]} 45. gxf5 {[%emt 0:00:00]} exf5 {[%emt 0:00:00]} 46. Nf2 {[%emt 0:00:00]} Nd6 {[%emt 0:00:00]} 47. Nd3 {[%emt 0:00:00]} g5 {[%emt 0:00:00]} 48. Ne5 {[%emt 0:00:00]} g4 {[%emt 0:00:00]} 49. e4 {[%emt 0:00:00]} Nxe4 {[%emt 0:00:00]} 50. Kc4 {[%emt 0:00:00]} h5 {[%emt 0:00:00]} 51. Kd5 {[%emt 0:00:00]} a5 {[%emt 0:03:29]} 52. Nc6 {[%emt 0:00:00]} a4 {[%emt 0:01:39]} 53. Ne7+ {[%emt 0:00:00]} Kf7 {[%emt 0:01:38]} 54. Nxf5 {[%emt 0:00:00]} a3 {[%emt 0:00:12]} 55. Ne3 {[%emt 0:00:00]} a2 {[%emt 0:00:07]} 56. Nc2 {[%emt 0:00:00]} Nc3+ {[%emt 0:00:05]} 57. Kc4 {[%emt 0:00:00]} h4 {[%emt 0:00:16]} 0-1

[Event "Schachfestival IM 2018"]
[Site "Lueneburg"]
[Date "2018.07.09"]
[Round "5"]
[White "Polster, Christian"]
[Black "Sriram, Jha"]
[Result "1/2-1/2"]
[ECO "C56"]
[WhiteElo "2286"]
[BlackElo "2409"]
[Annotator "ChessBase"]
[PlyCount "115"]
[EventDate "2018.07.05"]
[EventType "tourn"]
[EventCountry "GER"]
[SourceTitle "playchess.com"]
[Source "ChessBase"]
[SourceQuality "1"]
[TimeControl "40/5400+30:1800+30"]

1. e4 {[%emt 0:03:45]} e5 {[%emt 0:00:57]} 2. Nf3 {[%emt 0:00:20]} Nc6 {[%emt 0:01:00]} 3. Bc4 {[%emt 0:00:16]} Nf6 {[%emt 0:01:51]} 4. d4 {[%emt 0:00:44]} exd4 {[%emt 0:00:16]} 5. e5 {[%emt 0:00:10]} d5 {[%emt 0:00:03]} 6. Bb5 {[%emt 0:00:22]} Ne4 {[%emt 0:00:02]} 7. Nxd4 {[%emt 0:00:19]} Bd7 {[%emt 0:00:01]} 8. Bxc6 {[%emt 0:00:32]} bxc6 {[%emt 0:00:02]} 9. O-O {[%emt 0:00:20]} Bc5 {[%emt 0:00:11]} 10. f3 {[%emt 0:00:22]} Ng5 {[%emt 0:00:06]} 11. Be3 {[%emt 0:00:43]} Bb6 {[%emt 0:06:08]} 12. f4 {[%emt 0:00:50]} Ne4 {[%emt 0:00:28]} 13. Nd2 {[%emt 0:00:21]} Nxd2 {[%emt 0:01:57]} 14. Qxd2 {[%emt 0:00:11]} c5 {[%emt 0:00:02]} 15. Nf3 {[%emt 0:01:36]} d4 {[%emt 0:00:05]} 16. Bf2 {[%emt 0:00:15]} Bc6 {[%emt 0:00:03]} 17. a4 {[%emt 0:02:09]} a5 {[%emt 0:03:53]} 18. Qd3 {[%emt 0:02:20]} Qd5 {[%emt 0:01:24]} 19. Rfe1 {[%emt 0:08:54]} O-O {[%emt 0:16:05]} 20. f5 {[%emt 0:14:19]} f6 {[%emt 0:15:07]} 21. c4 {[%emt 0:09:58]} dxc3 {[%emt 0:17:59]} 22. Qxc3 {[%emt 0:02:43]} c4 {[%emt 0:01:37]} 23. Rad1 {[%emt 0:18:47]} Bxf2+ {[%emt 0:00:14]} 24. Kxf2 {[%emt 0:00:10]} Qc5+ {[%emt 0:00:14]} 25. Qd4 {[%emt 0:00:17]} Qxd4+ {[%emt 0:12:29]} 26. Rxd4 {[%emt 0:00:33]} fxe5 {[%emt 0:07:09]} 27. Rxe5 {[%emt 0:01:02]} Rab8 {[%emt 0:01:16]} 28. Rxc4 {[%emt 0:01:38]} Rxb2+ {[%emt 0:00:10]} 29. Kg3 {[%emt 0:00:57]} Bxf3 {[%emt 0:04:28]} 30. gxf3 {[%emt 0:02:16]} Rb4 {[%emt 0:01:57]} 31. Rxc7 {[%emt 0:02:14]} Rxa4 {[%emt 0:00:23]} 32. Ree7 {[%emt 0:06:49]} Rxf5 {[%emt 0:00:19]} 33. Rxg7+ {[%emt 0:00:13]} Kf8 {[%emt 0:01:28]} 34. Rxh7 {[%emt 0:00:27]} Rg5+ {[%emt 0:00:16]} 35. Kf2 {[%emt 0:00:08]} Kg8 {[%emt 0:02:08]} 36. Rhd7 {[%emt 0:01:21]} Rf4 {[%emt 0:02:58]} 37. Ra7 {[%emt 0:03:31]} Rf6 {[%emt 0:01:17]} 38. h4 {[%emt 0:02:15]} Rgf5 {[%emt 0:00:20]} 39. Rd8+ {[%emt 0:01:26]} Rf8 {[%emt 0:00:02]} 40. Rxf8+ {[%emt 0:00:49]} Kxf8 {[%emt 0:00:01]} 41. Kg3 {[%emt 0:30:23]} Kg8 {[%emt 0:32:59]} 42. Kg4 {[%emt 0:02:44]} Rc5 {[%emt 0:00:00]} 43. f4 {[%emt 0:00:00]} Rb5 {[%emt 0:00:00]} 44. h5 {[%emt 0:00:00]} Rc5 {[%emt 0:00:00]} 45. h6 {[%emt 0:00:00]} Rc1 {[%emt 0:00:00]} 46. f5 {[%emt 0:00:00]} Rg1+ {[%emt 0:00:00]} 47. Kh5 {[%emt 0:00:00]} Rh1+ {[%emt 0:00:00]} 48. Kg6 {[%emt 0:00:00]} Rg1+ {[%emt 0:00:00]} 49. Kf6 {[%emt 0:00:00]} Rh1 {[%emt 0:00:00]} 50. Ra8+ {[%emt 0:00:00]} Kh7 {[%emt 0:00:00]} 51. Kf7 {[%emt 0:00:00]} Rb1 {[%emt 0:00:00]} 52. f6 {[%emt 0:00:00]} Rb7+ {[%emt 0:00:00]} 53. Kf8 {[%emt 0:00:00]} Kxh6 {[%emt 0:01:52]} 54. f7 {[%emt 0:00:00]} Kg6 {[%emt 0:00:20]} 55. Ra6+ {[%emt 0:00:00]} Kh7 {[%emt 0:00:13]} 56. Rd6 {[%emt 0:00:00]} Rb8+ {[%emt 0:00:23]} 57. Ke7 {[%emt 0:00:00]} Kg7 {[%emt 0:00:03]} 58. Rf6 {[%emt 0:00:00]} 1/2-1/2

[Event "Schachfestival IM 2018"]
[Site "Lueneburg"]
[Date "2018.07.09"]
[Round "5"]
[White "Wenzel, Birger"]
[Black "Light, Bjarne"]
[Result "1-0"]
[ECO "B51"]
[WhiteElo "2084"]
[BlackElo "2177"]
[Annotator "NA"]
[PlyCount "91"]
[EventDate "2018.07.05"]
[EventType "tourn"]
[EventCountry "GER"]
[SourceTitle "playchess.com"]
[Source "ChessBase"]
[SourceQuality "1"]
[TimeControl "40/5400+30:1800+30"]

1. e4 {[%emt 0:00:00]} c5 {[%emt 0:00:00]} 2. Nf3 {[%emt 0:00:00]} Nc6 {[%emt 0:00:00]} 3. Bb5 {[%emt 0:00:00]} d6 {[%emt 0:00:00]} 4. Bxc6+ {[%emt 0:00:05]} bxc6 {[%emt 0:00:55]} 5. e5 {[%emt 0:00:04]} Ba6 {[%emt 0:07:23]} 6. Nc3 {[%emt 0:12:18]} Qd7 {[%emt 0:15:33]} 7. d3 {[%emt 0:04:54]} f6 {[%emt 0:01:23]} 8. exd6 {[%emt 0:01:54]} exd6 {[%emt 0:00:05]} 9. O-O {[%emt 0:02:18]} g6 {[%emt 0:02:03]} 10. Re1+ {[%emt 0:01:46]} Kf7 {[%emt 0:02:52]} 11. b3 {[%emt 0:09:44]} Nh6 {[%emt 0:05:05]} 12. Ne4 {[%emt 0:07:59]} Ng4 {[%emt 0:18:05]} 13. Bb2 {[%emt 0:07:40]} Be7 {[%emt 0:05:10]} 14. d4 {[%emt 0:06:54]} c4 {[%emt 0:07:21]} 15. h3 {[%emt 0:15:24]} Nh6 {[%emt 0:01:20]} 16. d5 {[%emt 0:02:32]} c5 {[%emt 0:01:49]} 17. Qd2 {[%emt 0:03:20]} Nf5 {[%emt 0:10:43]} 18. Qf4 {[%emt 0:05:47]} Rhf8 {[%emt 0:06:22]} 19. g4 {[%emt 0:03:03]} Nd4 {[%emt 0:02:14]} 20. Nxd4 {[%emt 0:01:44]} cxd4 {[%emt 0:00:10]} 21. Bxd4 {[%emt 0:00:08]} Kg8 {[%emt 0:02:49]} 22. Bxf6 {[%emt 0:03:10]} Rf7 {[%emt 0:00:46]} 23. Qg5 {[%emt 0:00:42]} Bf8 {[%emt 0:02:03]} 24. Re3 {[%emt 0:02:35]} Bg7 {[%emt 0:00:56]} 25. Rae1 {[%emt 0:03:32]} Raf8 {[%emt 0:00:17]} 26. Bxg7 {[%emt 0:00:53]} Kxg7 {[%emt 0:00:06]} 27. Qh4 {[%emt 0:00:25]} h6 {[%emt 0:02:05]} 28. g5 {[%emt 0:00:42]} h5 {[%emt 0:00:22]} 29. Nf6 {[%emt 0:00:39]} Qf5 {[%emt 0:00:20]} 30. Re6 {[%emt 0:01:53]} c3 {[%emt 0:01:43]} 31. Ne8+ {[%emt 0:01:52]} Rxe8 32. Rxe8 Qxd5 {[%emt 0:00:48]} 33. Qg3 {[%emt 0:01:17]} Qc5 {[%emt 0:02:48]} 34. Qe3 {[%emt 0:00:11]} Bc8 {[%emt 0:01:14]} 35. Qxc5 {[%emt 0:00:35]} dxc5 {[%emt 0:00:04]} 36. R1e3 {[%emt 0:00:20]} Bf5 {[%emt 0:00:37]} 37. R8e7 {[%emt 0:00:33]} Bxc2 {[%emt 0:01:03]} 38. Rxf7+ {[%emt 0:00:20]} Kxf7 {[%emt 0:00:04]} 39. Rxc3 {[%emt 0:00:35]} Bb1 {[%emt 0:00:11]} 40. a3 {[%emt 0:00:19]} Ba2 {[%emt 0:00:43]} 41. Rxc5 {[%emt 0:02:35]} Bxb3 {[%emt 0:00:00]} 42. Rc7+ {[%emt 0:03:03]} Ke6 {[%emt 0:00:00]} 43. Rxa7 {[%emt 0:00:06]} Kf5 {[%emt 0:00:02]} 44. Ra5+ {[%emt 0:00:23]} Kf4 {[%emt 0:00:09]} 45. Rb5 {[%emt 0:00:39]} Be6 {[%emt 0:00:55]} 46. Kh2 {[%emt 0:01:15]} 1-0

[Event "Schachfestival IM 2018"]
[Site "Lueneburg"]
[Date "2018.07.09"]
[Round "5"]
[White "Pubantz, Jan"]
[Black "Kuberczyk, Christoph"]
[Result "1/2-1/2"]
[ECO "A31"]
[WhiteElo "1997"]
[BlackElo "2225"]
[Annotator "NA"]
[PlyCount "131"]
[EventDate "2018.07.05"]
[EventType "tourn"]
[EventCountry "GER"]
[SourceTitle "playchess.com"]
[Source "ChessBase"]
[SourceQuality "1"]
[TimeControl "40/5400+30:1800+30"]

1. d4 {[%emt 0:03:21]} Nf6 {[%emt 0:00:00]} 2. c4 {[%emt 0:00:07]} c5 {[%emt 0:00:00]} 3. Nf3 {[%emt 0:00:15]} cxd4 {[%emt 0:00:00]} 4. Nxd4 {[%emt 0:00:07]} b6 {[%emt 0:00:05]} 5. f3 {[%emt 0:06:17]} d6 {[%emt 0:01:37]} 6. e4 {[%emt 0:01:49]} Bb7 {[%emt 0:00:40]} 7. Nc3 {[%emt 0:00:21]} e6 {[%emt 0:02:18]} 8. Be2 {[%emt 0:01:35]} Nbd7 {[%emt 0:01:21]} 9. O-O {[%emt 0:01:47]} Be7 {[%emt 0:01:29]} 10. Be3 {[%emt 0:00:32]} O-O {[%emt 0:00:12]} 11. Rc1 {[%emt 0:01:51]} a6 {[%emt 0:01:14]} 12. Qd2 {[%emt 0:03:20]} Rc8 {[%emt 0:01:27]} 13. Rfd1 {[%emt 0:03:02]} Qc7 {[%emt 0:00:33]} 14. b3 {[%emt 0:05:01]} Qb8 {[%emt 0:00:48] LiveBook: 17 Games} 15. Bf1 {[%emt 0:06:42]} Rfe8 {[%emt 0:02:33]} 16. Qf2 {[%emt 0:04:21]} Bd8 {[%emt 0:01:15]} 17. Nde2 {[%emt 0:11:19] A31: Symmetrical English: 2 Nf3 Nf6 3 d4} (17. Kh1 Bc7 18. Qh4 Ne5 19. Bg1 Ng6 20. Qf2 h5 21. Nc2 d5 22. exd5 exd5 23. Nxd5 Nxd5 24. cxd5 Bf4 {1-0 (68) Dervishi,E (2552)-Shchekachev,A (2534) Paris 2017}) 17... Bc7 {[%emt 0:04:30]} 18. g3 {[%emt 0:01:16]} Ba8 {[%emt 0:07:09]} 19. a4 {[%emt 0:05:31]} Ne5 {[%emt 0:03:01]} 20. h3 $146 {[%emt 0:03:42]} ({Predecessor:} 20. Bg2 Rcd8 21. h3 Ned7 22. Rc2 h5 23. Rcd2 Rc8 24. Kh1 {½-½ (24) Baier,C (1877)-Carow,A (2054) Oberhof 2012}) 20... Ng6 {[%emt 0:12:56]} 21. Bg2 {[%emt 0:01:54]} Bc6 {[%emt 0:06:08]} 22. b4 {[%emt 0:03:44]} Ne5 {[%emt 0:08:06]} 23. b5 {[%emt 0:08:36]} Ba8 {[%emt 0:02:38]} 24. Nb1 {[%emt 0:12:28]} Bd8 {[%emt 0:14:20]} 25. Na3 {[%emt 0:01:46]} d5 {[%emt 0:04:12]} 26. cxd5 {[%emt 0:01:49]} Rxc1 {[%emt 0:02:10]} 27. Bxc1 {[%emt 0:02:14]} exd5 {[%emt 0:04:09]} 28. f4 {[%emt 0:02:48]} Ng6 {[%emt 0:03:32]} 29. exd5 {[%emt 0:00:40]} Be7 {[%emt 0:02:20]} 30. Nc4 {[%emt 0:01:45]} Bc5 {[%emt 0:00:12]} 31. Be3 {[%emt 0:00:06]} axb5 {[%emt 0:02:25]} 32. axb5 {[%emt 0:00:17]} Ne4 {[%emt 0:06:20]} 33. Qf3 {[%emt 0:03:23]} ({Lieber} 33. Bxe4 $1 $16 Rxe4 34. Bxc5 Rxc4 35. Ba3 (35. Bxb6 Ne7 $16)) 33... Qc7 {[%emt 0:02:54]} 34. Kh2 {[%emt 0:01:44]} Bxe3 {[%emt 0:01:14]} 35. Nxe3 {[%emt 0:00:13]} Qc5 {[%emt 0:00:05]} 36. Nd4 {[%emt 0:01:00]} Nc3 {[%emt 0:00:22]} 37. Rd2 {[%emt 0:00:49]} Nxb5 {[%emt 0:01:59]} 38. Nxb5 {[%emt 0:00:41]} Qxb5 {[%emt 0:00:09]} 39. Qf2 {[%emt 0:00:29]} h5 {[%emt 0:02:11]} 40. Nf5 {[%emt 0:00:40]} Rd8 {[%emt 0:00:30]} 41. Qd4 {[%emt 0:06:54]} f6 {[%emt 0:00:00]} 42. Rb2 {[%emt 0:01:39]} Qc5 {[%emt 0:01:45]} 43. Qxc5 {[%emt 0:03:07]} bxc5 {[%emt 0:00:05]} 44. Ra2 {[%emt 0:07:32]} Kf8 {[%emt 0:09:30]} 45. Ra7 {[%emt 0:07:59]} (45. Rc2 $16) 45... Bxd5 {[%emt 0:03:33]} 46. Nxg7 {[%emt 0:00:24]} Bf7 {[%emt 0:12:58]} (46... Bc4 $11) 47. Nxh5 Rd6 48. g4 {[%emt 0:02:06]} Nh4 {[%emt 0:00:36]} (48... Rd2 $1 $11 {hält das Gleichgewicht.} 49. Kg3 (49. Nxf6 Nxf4 50. Nh7+ Kg8 $11) 49... Rd3+ 50. Kf2 Rd2+ 51. Kg3 Rd3+ 52. Kh2 Rd2) 49. Kg3 {[%emt 0:03:36]} Nxg2 {[%emt 0:00:07]} 50. Kxg2 {[%emt 0:00:09]} Bxh5 {[%emt 0:01:28]} 51. gxh5 {[%emt 0:00:05]} Rd5 {[%emt 0:04:24]} 52. h6 Rh5 53. h7 {[%emt 0:01:23]} f5 {[%emt 0:01:16]} 54. Rc7 {[%emt 0:00:33]} c4 {[%emt 0:00:46]} 55. Rxc4 {[%emt 0:01:00]} Kg7 {[%emt 0:00:01]} 56. Rc7+ {[%emt 0:00:12]} Kg6 {[%emt 0:00:12]} 57. Kg3 {[%emt 0:00:27]} Kf6 $2 {[%emt 0:00:09] [#]} (57... Rh6 $11 58. Kg2 Rh4) 58. h4 $2 {[%emt 0:00:25]} (58. Rc8 $1 {mates} Rxh7 59. Rc6+ Kg7 60. Rc7+ Kh6 61. Rxh7+ Kxh7 62. Kf2 Kg6 63. Ke3) 58... Kg6 {[%emt 0:00:05]} 59. Kh3 {[%emt 0:00:41]} Kf6 {[%emt 0:00:30]} 60. Rc8 {[%emt 0:00:29]} Rxh7 {[%emt 0:00:12]} 61. Rc6+ {[%emt 0:00:07]} Kf7 {[%emt 0:00:28]} 62. Rc7+ {[%emt 0:00:02]} Kg6 {[%emt 0:00:03]} 63. Rxh7 {[%emt 0:00:07]} Kxh7 {[%emt 0:00:06]} 64. h5 {[%emt 0:02:10]} Kg7 $11 {[%emt 0:00:04]} 65. Kg3 {[%emt 0:00:04]} Kh7 {[%emt 0:00:16]} 66. Kh3 {[%emt 0:01:07]} 1/2-1/2